[Event "2019 National Open"]
[Site "Las Vegas"]
[Date "2019.06.15"]
[Round "7"]
[White "Tang, Andrew"]
[Black "Lin, Andy"]
[Result "1-0"]
[ECO "D00"]
[WhiteElo "2496"]
[BlackElo "2267"]
[PlyCount "67"]
[EventDate "2019.??.??"]
[TimeControl "5400+30"]
[WhiteClock "0:05:56"]
[BlackClock "0:26:56"]

1. d4 {[%emt 0:00:00]} d5 {[%emt 0:00:11]} 2. Bf4 {[%emt 0:00:04]} c5 {[%emt 0:00:02]} 3. e3 {[%emt 0:00:05]} Nc6 {[%emt 0:00:01]} 4. Nf3 {[%emt 0:00:04]} cxd4 {[%emt 0:01:07]} 5. exd4 {[%emt 0:00:00]} Bf5 {[%emt 0:00:13]} 6. c3 {[%emt 0:00:25]} e6 {[%emt 0:01:20]} 7. Nbd2 {[%emt 0:02:15]} Bd6 {[%emt 0:02:52]} 8. Bxd6 {[%emt 0:00:13]} Qxd6 {[%emt 0:00:07]} 9. Nh4 {[%emt 0:00:01]} Nge7 {[%emt 0:03:40]} 10. Nxf5 {[%emt 0:01:29]} Nxf5 {[%emt 0:00:02]} 11. Bd3 {[%emt 0:00:08]} Nfe7 {[%emt 0:01:56]} 12. O-O {[%emt 0:00:49]} O-O {[%emt 0:03:11]} 13. Re1 {[%emt 0:00:29]} Ng6 {[%emt 0:14:36]} 14. Qh5 {[%emt 0:06:09]} f5 {[%emt 0:00:42]} 15. g3 {[%emt 0:06:55]} e5 {[%emt 0:08:26]} 16. dxe5 {[%emt 0:00:36]} Ngxe5 {[%emt 0:00:46]} 17. Bf1 {[%emt 0:01:00]} f4 {[%emt 0:01:20]} 18. Rad1 {[%emt 0:02:30]} Rad8 {[%emt 0:14:58]} 19. Bg2 {[%emt 0:14:04]} Nd3 {[%emt 0:09:52]} 20. Re2 {[%emt 0:05:04]} g6 {[%emt 0:05:05]} 21. Qh3 {[%emt 0:03:58]} fxg3 {[%emt 0:08:36]} 22. hxg3 {[%emt 0:01:30]} Nxb2 {[%emt 0:01:43]} 23. Rb1 {[%emt 0:02:03]} Nd3 {[%emt 0:01:39]} 24. Rxb7 {[%emt 0:01:29]} h5 {[%emt 0:00:01]} 25. Qh4 {[%emt 0:03:33]} Rf5 {[%emt 0:07:24]} 26. c4 {[%emt 0:07:38]} Nc5 {[%emt 0:02:55]} 27. Rb1 {[%emt 0:07:23]} Kg7 {[%emt 0:04:00]} 28. cxd5 {[%emt 0:00:28]} Rxd5 {[%emt 0:00:11]} 29. Bxd5 {[%emt 0:00:54]} Qxd5 {[%emt 0:00:00]} 30. Rbe1 {[%emt 0:03:56]} Rd7 {[%emt 0:01:28]} 31. Ne4 {[%emt 0:01:03]} Nd3 {[%emt 0:02:05]} 32. Qf6+ {[%emt 0:00:28]} Kh7 {[%emt 0:00:01]} 33. Ng5+ {[%emt 0:00:56]} Kh6 {[%emt 0:00:04]} 34. Re8 {[%emt 0:02:25]} 1-0

[Event "2019 National Open"]
[Site "Las Vegas"]
[Date "2019.06.15"]
[Round "7"]
[White "Nestorovic, Nikola"]
[Black "Yanayt, Eugene"]
[Result "1-0"]
[ECO "B72"]
[WhiteElo "2481"]
[BlackElo "2241"]
[PlyCount "65"]
[EventDate "2019.??.??"]
[TimeControl "5400+30"]
[WhiteClock "0:03:07"]
[BlackClock "0:21:20"]

1. e4 {[%emt 0:00:00]} c5 {[%emt 0:07:29]} 2. Nf3 {[%emt 0:00:04]} d6 {[%emt 0:00:42]} 3. d4 {[%emt 0:00:05]} cxd4 {[%emt 0:00:00]} 4. Nxd4 {[%emt 0:00:04]} Nf6 {[%emt 0:00:02]} 5. Nc3 {[%emt 0:00:04]} g6 {[%emt 0:00:30]} 6. Be3 {[%emt 0:00:24]} Bg7 {[%emt 0:00:00]} 7. Be2 {[%emt 0:00:19]} O-O {[%emt 0:01:17]} 8. Qd2 {[%emt 0:00:05]} Ng4 {[%emt 0:07:46]} 9. Bxg4 {[%emt 0:00:11]} Bxg4 {[%emt 0:00:02]} 10. f3 {[%emt 0:00:49]} Bd7 {[%emt 0:05:18]} 11. h4 {[%emt 0:00:07]} Nc6 {[%emt 0:05:11]} 12. h5 {[%emt 0:03:05]} Ne5 {[%emt 0:05:36]} 13. b3 {[%emt 0:00:12]} e6 {[%emt 0:04:12]} 14. hxg6 {[%emt 0:06:51]} fxg6 {[%emt 0:00:19]} 15. Bh6 {[%emt 0:00:25]} Qf6 {[%emt 0:08:19]} 16. Bxg7 {[%emt 0:00:15]} Qxg7 {[%emt 0:00:01]} 17. O-O-O {[%emt 0:01:08]} Rac8 {[%emt 0:03:13]} 18. Kb1 {[%emt 0:00:11]} Rc5 {[%emt 0:01:57]} 19. Nce2 {[%emt 0:05:12]} Nf7 {[%emt 0:06:04]} 20. c4 {[%emt 0:07:40]} Rfc8 {[%emt 0:06:53]} 21. Rc1 {[%emt 0:09:58]} d5 {[%emt 0:11:10]} 22. exd5 {[%emt 0:10:22]} exd5 {[%emt 0:03:38]} 23. Nf4 {[%emt 0:00:06]} Nd8 {[%emt 0:09:59]} 24. Nxd5 {[%emt 0:01:01]} Nc6 {[%emt 0:03:34]} 25. Nc2 {[%emt 0:18:32]} Bf5 {[%emt 0:04:35]} 26. g4 {[%emt 0:01:29]} Bxc2+ {[%emt 0:00:01]} 27. Rxc2 {[%emt 0:01:51]} b5 {[%emt 0:01:22]} 28. g5 {[%emt 0:00:37]} Kh8 {[%emt 0:01:04]} 29. Qe3 {[%emt 0:09:47]} Nd4 {[%emt 0:01:23]} 30. Rxh7+ {[%emt 0:01:57]} Qxh7 {[%emt 0:01:04]} 31. Qxd4+ {[%emt 0:00:34]} Qg7 {[%emt 0:00:12]} 32. Rh2+ {[%emt 0:00:18]} Kg8 {[%emt 0:00:00]} 33. Nf6+ {[%emt 0:01:27]} 1-0

[Event "2019 National Open"]
[Site "Las Vegas"]
[Date "2019.06.15"]
[Round "7"]
[White "Prasanna Raghuram Rao"]
[Black "Ghazarian, Kirk"]
[Result "1-0"]
[ECO "D02"]
[WhiteElo "2448"]
[BlackElo "2224"]
[PlyCount "73"]
[EventDate "2019.??.??"]
[TimeControl "5400+30"]
[WhiteClock "0:11:55"]
[BlackClock "1:12:05"]

1. d4 {[%emt 0:00:00]} d5 {[%emt 0:00:24]} 2. Nf3 {[%emt 0:00:00]} Nf6 {[%emt 0:01:21]} 3. Bf4 {[%emt 0:00:01]} c5 {[%emt 0:00:00]} 4. e3 {[%emt 0:00:00]} Nc6 {[%emt 0:02:01]} 5. Nbd2 {[%emt 0:00:00]} Bf5 {[%emt 0:17:52]} 6. c3 {[%emt 0:00:00]} cxd4 {[%emt 0:00:00]} 7. exd4 {[%emt 0:00:00]} Nh5 {[%emt 0:36:46]} 8. Be3 {[%emt 0:00:00]} e6 {[%emt 0:00:01]} 9. Ne5 {[%emt 0:00:00]} Nf6 {[%emt 0:04:19]} 10. g4 {[%emt 0:18:01]} Bg6 {[%emt 0:00:00]} 11. h4 {[%emt 0:00:00]} h5 {[%emt 0:00:00]} 12. Nxg6 {[%emt 0:01:08]} fxg6 {[%emt 0:00:00]} 13. g5 {[%emt 0:05:23]} Ng4 {[%emt 0:04:05]} 14. Bh3 {[%emt 0:00:00]} Nxe3 {[%emt 0:15:40]} 15. fxe3 {[%emt 0:00:00]} Bd6 {[%emt 0:00:01]} 16. Qc2 {[%emt 0:00:04]} Bg3+ {[%emt 0:00:00]} 17. Ke2 {[%emt 0:00:00]} Ne7 {[%emt 0:00:00]} 18. Rag1 {[%emt 0:06:50]} Bc7 {[%emt 0:09:40]} 19. c4 {[%emt 0:04:48]} Qd6 {[%emt 0:00:00]} 20. Qa4+ {[%emt 0:00:01]} Qd7 {[%emt 0:00:00]} 21. Qxd7+ {[%emt 0:00:00]} Kxd7 {[%emt 0:00:00]} 22. cxd5 {[%emt 0:00:00]} Nxd5 {[%emt 0:00:00]} 23. Ne4 {[%emt 0:00:00]} Bd6 {[%emt 0:00:00]} 24. Nc3 {[%emt 0:00:00]} Nxc3+ {[%emt 0:00:00]} 25. bxc3 {[%emt 0:00:00]} Ke7 {[%emt 0:00:00]} 26. Bg2 {[%emt 0:00:00]} Rac8 {[%emt 0:00:00]} 27. Kd3 {[%emt 0:00:00]} b5 {[%emt 0:00:00]} 28. Rb1 {[%emt 0:00:01]} a6 {[%emt 0:00:00]} 29. Bb7 {[%emt 0:00:01]} Rc7 {[%emt 0:00:00]} 30. Bxa6 {[%emt 0:00:02]} Ra8 {[%emt 0:00:00]} 31. Bxb5 {[%emt 0:00:00]} Rxa2 {[%emt 0:00:00]} 32. c4 {[%emt 0:00:01]} Bg3 {[%emt 0:00:00]} 33. Rh3 {[%emt 0:00:02]} Bf2 {[%emt 0:00:00]} 34. Rf3 {[%emt 0:00:00]} Bxh4 {[%emt 0:00:00]} 35. Rbf1 {[%emt 0:00:01]} Bxg5 {[%emt 0:03:55]} 36. Rf7+ {[%emt 0:00:01]} Kd8 {[%emt 0:00:00]} 37. Rf8+ {[%emt 0:00:00] Kxh8 [%clk 0:12:25] Kxh8 [%clk 1:12:35]} 1-0

[Event "2019 National Open"]
[Site "Las Vegas"]
[Date "2019.06.15"]
[Round "7"]
[White "Katz, Alexander"]
[Black "Gretarsson, Helgi Ass"]
[Result "1/2-1/2"]
[ECO "C53"]
[WhiteElo "2427"]
[BlackElo "2433"]
[PlyCount "31"]
[EventDate "2019.??.??"]
[TimeControl "5400+30"]
[WhiteClock "0:49:08"]
[BlackClock "1:02:46"]

1. e4 {[%emt 0:00:00]} e5 {[%emt 0:00:18]} 2. Nf3 {[%emt 0:00:04]} Nc6 {[%emt 0:00:00]} 3. Bc4 {[%emt 0:00:03]} Bc5 {[%emt 0:00:02]} 4. c3 {[%emt 0:00:06]} Nf6 {[%emt 0:00:01]} 5. d3 {[%emt 0:00:04]} d6 {[%emt 0:00:26]} 6. Bb3 {[%emt 0:00:06]} a6 {[%emt 0:00:09]} 7. Nbd2 {[%emt 0:00:09]} Ba7 {[%emt 0:00:16]} 8. h3 {[%emt 0:01:52]} O-O {[%emt 0:02:00]} 9. O-O {[%emt 0:01:02]} Be6 {[%emt 0:07:38]} 10. Re1 {[%emt 0:00:08]} Re8 {[%emt 0:14:47]} 11. Nf1 {[%emt 0:03:52]} Bxb3 {[%emt 0:16:06]} 12. Qxb3 {[%emt 0:02:03]} Qc8 {[%emt 0:00:04]} 13. Ng3 {[%emt 0:01:43]} Rb8 {[%emt 0:05:35]} 14. Be3 {[%emt 0:23:19]} Bxe3 {[%emt 0:00:45]} 15. Rxe3 {[%emt 0:00:07]} Qe6 {[%emt 0:00:15]} 16. Qxe6 {[%emt 0:00:36]} 1/2-1/2

[Event "2019 National Open"]
[Site "Las Vegas"]
[Date "2019.06.15"]
[Round "7"]
[White "Kavutskiy, Konstantin"]
[Black "Watson, John"]
[Result "1-0"]
[ECO "A06"]
[WhiteElo "2417"]
[BlackElo "2199"]
[PlyCount "65"]
[EventDate "2019.??.??"]
[TimeControl "5400+30"]
[WhiteClock "0:05:33"]
[BlackClock "0:11:42"]

1. Nf3 {[%emt 0:00:00]} d5 {[%emt 0:08:01]} 2. e3 {[%emt 0:00:22]} g6 {[%emt 0:05:47]} 3. c4 {[%emt 0:01:55]} c6 {[%emt 0:00:45]} 4. d4 {[%emt 0:01:28]} Nf6 {[%emt 0:00:30]} 5. Nc3 {[%emt 0:00:11]} Bg7 {[%emt 0:00:08]} 6. Be2 {[%emt 0:00:06]} O-O {[%emt 0:00:16]} 7. O-O {[%emt 0:00:06]} dxc4 {[%emt 0:03:40]} 8. Bxc4 {[%emt 0:00:08]} Bg4 {[%emt 0:00:04]} 9. Be2 {[%emt 0:00:18]} Nbd7 {[%emt 0:03:01]} 10. e4 {[%emt 0:03:08]} Qa5 {[%emt 0:10:26]} 11. Be3 {[%emt 0:19:51]} Rfd8 {[%emt 0:11:52]} 12. Qb3 {[%emt 0:02:34]} Qb6 {[%emt 0:04:30]} 13. Qc2 {[%emt 0:03:02]} Rac8 {[%emt 0:02:17]} 14. h3 {[%emt 0:04:09]} Bxf3 {[%emt 0:00:08]} 15. Bxf3 {[%emt 0:00:06]} Qa5 {[%emt 0:01:12]} 16. Be2 {[%emt 0:07:54]} c5 {[%emt 0:13:36]} 17. d5 {[%emt 0:01:12]} c4 {[%emt 0:00:19]} 18. Rad1 {[%emt 0:03:02]} b5 {[%emt 0:00:51]} 19. a3 {[%emt 0:00:14]} Nb6 {[%emt 0:10:48]} 20. f4 {[%emt 0:01:45]} b4 {[%emt 0:00:50]} 21. axb4 {[%emt 0:00:26]} Qxb4 {[%emt 0:00:01]} 22. Bf3 {[%emt 0:01:03]} Nfd7 {[%emt 0:02:35]} 23. e5 {[%emt 0:16:39]} Nc5 {[%emt 0:06:41]} 24. f5 {[%emt 0:02:31]} Bxe5 {[%emt 0:02:55]} 25. fxg6 {[%emt 0:01:37]} hxg6 {[%emt 0:02:05]} 26. Bg4 {[%emt 0:00:12]} Nd3 {[%emt 0:03:55]} 27. Bc1 {[%emt 0:12:51]} Bxc3 {[%emt 0:02:37]} 28. bxc3 {[%emt 0:00:30]} Qc5+ {[%emt 0:00:06]} 29. Kh1 {[%emt 0:00:12]} Rb8 {[%emt 0:00:56]} 30. Bh6 {[%emt 0:05:08]} Qxd5 {[%emt 0:01:50]} 31. Qe2 {[%emt 0:00:29]} Qe5 {[%emt 0:02:17]} 32. Rxd3 {[%emt 0:01:10]} Qc7 {[%emt 0:00:00]} 33. Rdf3 {[%emt 0:00:29]} 1-0

[Event "2019 National Open"]
[Site "Las Vegas"]
[Date "2019.06.15"]
[Round "7"]
[White "Griffith, Kyron"]
[Black "Shetty, Atulya"]
[Result "*"]
[ECO "C11"]
[WhiteElo "2336"]
[BlackElo "2431"]
[PlyCount "154"]
[EventDate "2019.??.??"]
[TimeControl "5400+30"]
[WhiteClock "0:40:28"]
[BlackClock "0:02:29"]

1. e4 {[%emt 0:00:00]} e6 {[%emt 0:00:29]} 2. d4 {[%emt 0:00:01]} d5 {[%emt 0:00:00]} 3. Nc3 {[%emt 0:00:40]} Nf6 {[%emt 0:00:01]} 4. e5 {[%emt 0:00:00]} Nfd7 {[%emt 0:00:00]} 5. f4 {[%emt 0:00:00]} c5 {[%emt 0:00:25]} 6. Nf3 {[%emt 0:00:01]} Nc6 {[%emt 0:00:13]} 7. Be3 {[%emt 0:00:14]} a6 {[%emt 0:00:26]} 8. Qd2 {[%emt 0:00:31]} b5 {[%emt 0:00:38]} 9. Qf2 {[%emt 0:01:21]} Qb6 {[%emt 0:07:12]} 10. Bd3 {[%emt 0:01:01]} g6 {[%emt 0:15:21]} 11. O-O {[%emt 0:05:24]} Bb7 {[%emt 0:02:40]} 12. a3 {[%emt 0:08:49]} Rc8 {[%emt 0:06:57]} 13. Rfd1 {[%emt 0:12:29]} cxd4 {[%emt 0:05:36]} 14. Nxd4 {[%emt 0:02:01]} Nxd4 {[%emt 0:00:00]} 15. Bxd4 {[%emt 0:00:00]} Qxd4 {[%emt 0:00:00]} 16. Qxd4 {[%emt 0:00:00]} Bc5 {[%emt 0:00:00]} 17. Ne2 {[%emt 0:09:26]} Bxd4+ {[%emt 0:00:00]} 18. Nxd4 {[%emt 0:00:25]} Ke7 {[%emt 0:01:45]} 19. Re1 {[%emt 0:04:09]} Nc5 {[%emt 0:04:10]} 20. Kf2 {[%emt 0:04:14]} Bc6 {[%emt 0:07:09]} 21. h4 {[%emt 0:00:01]} h5 {[%emt 0:00:00]} 22. Ke3 {[%emt 0:09:05]} Rc7 {[%emt 0:00:00]} 23. g3 {[%emt 0:12:44]} Rd8 {[%emt 0:00:01]} 24. Kd2 {[%emt 0:06:42]} Rb8 {[%emt 0:00:01]} 25. c3 {[%emt 0:07:51]} Bd7 {[%emt 0:00:00]} 26. Bc2 {[%emt 0:02:13]} Na4 {[%emt 0:00:00]} 27. Ra2 {[%emt 0:06:11]} Nb6 {[%emt 0:00:00]} 28. Bd3 {[%emt 0:03:09]} Nc4+ {[%emt 0:00:00]} 29. Ke2 {[%emt 0:03:06]} a5 {[%emt 0:03:55]} 30. b3 {[%emt 0:02:05]} Nb6 {[%emt 0:00:00]} 31. Kd2 {[%emt 0:00:20]} a4 {[%emt 0:02:49]} 32. b4 {[%emt 0:00:35]} Nc4+ {[%emt 0:00:01]} 33. Bxc4 {[%emt 0:00:48]} Rxc4 {[%emt 0:00:00]} 34. Re3 {[%emt 0:00:50]} Rbc8 {[%emt 0:00:01]} 35. Ra1 {[%emt 0:00:00]} Rh8 {[%emt 0:00:01]} 36. Rae1 {[%emt 0:00:16]} Rcc8 {[%emt 0:00:00]} 37. Rd3 {[%emt 0:00:45]} Rc4 {[%emt 0:00:29]} 38. Ree3 {[%emt 0:00:00]} Rcc8 {[%emt 0:00:04]} 39. Nc2 {[%emt 0:00:00]} Rc4 {[%emt 0:00:01]} 40. Rd4 {[%emt 0:00:00]} Rc7 {[%emt 0:00:00]} 41. Ne1 {[%emt 0:00:32]} Rhc8 {[%emt 0:00:01]} 42. Nf3 {[%emt 0:00:24]} Rc6 {[%emt 0:01:48]} 43. Rdd3 {[%emt 0:00:32]} Rc4 {[%emt 0:00:37]} 44. Re1 {[%emt 0:00:00]} Rh8 {[%emt 0:00:01]} 45. Rc1 {[%emt 0:00:00]} Rhc8 {[%emt 0:00:01]} 46. Rd4 {[%emt 0:00:00]} R4c7 {[%emt 0:00:00]} 47. Ne1 {[%emt 0:00:00]} Rh8 {[%emt 0:00:53]} 48. Nd3 {[%emt 0:00:00]} Rcc8 {[%emt 0:00:00]} 49. Nc5 {[%emt 0:00:00]} Bc6 {[%emt 0:00:36]} 50. Ke3 {[%emt 0:02:35]} Bd7 {[%emt 0:03:34]} 51. Rd2 {[%emt 0:01:19]} Kd8 {[%emt 0:03:46]} 52. Rcd1 {[%emt 0:00:00]} Kc7 {[%emt 0:02:40]} 53. Rc1 {[%emt 0:00:00]} Bc6 {[%emt 0:01:10]} 54. Rg1 {[%emt 0:01:19]} Rh7 {[%emt 0:00:27]} 55. Rh2 {[%emt 0:00:14]} Kb6 {[%emt 0:01:57]} 56. Kd4 {[%emt 0:01:05]} Rch8 {[%emt 0:00:01]} 57. Nd3 {[%emt 0:01:49]} Ba8 {[%emt 0:00:00]} 58. Ne1 {[%emt 0:00:00]} Rc8 {[%emt 0:00:01]} 59. Nf3 {[%emt 0:00:00]} Rhh8 {[%emt 0:02:28]} 60. Kd3 {[%emt 0:02:11]} d4 {[%emt 0:00:00]} 61. Nxd4 {[%emt 0:00:00]} Bd5 {[%emt 0:00:01]} 62. Kc2 {[%emt 0:00:00]} Rc7 {[%emt 0:00:00]} 63. Kb2 {[%emt 0:00:00]} Rhc8 {[%emt 0:00:01]} 64. Rc1 {[%emt 0:00:00]} Rc4 {[%emt 0:00:00]} 65. Re2 {[%emt 0:00:00]} R4c7 {[%emt 0:00:00]} 66. Re3 {[%emt 0:00:00]} Rd7 {[%emt 0:00:51]} 67. Rd1 {[%emt 0:01:20]} Rdc7 {[%emt 0:00:00]} 68. Nf3 {[%emt 0:00:18]} Bxf3 {[%emt 0:00:00]} 69. Rxf3 {[%emt 0:00:00]} Rc4 {[%emt 0:06:42]} 70. Re3 {[%emt 0:00:00]} R8c7 {[%emt 0:00:00]} 71. Kc2 {[%emt 0:00:42]} Kb7 {[%emt 0:00:00]} 72. Rd6 {[%emt 0:00:56]} Ka7 {[%emt 0:00:00]} 73. Kd2 {[%emt 0:00:39]} Kb7 {[%emt 0:00:00]} 74. Red3 {[%emt 0:00:50]} Ka7 {[%emt 0:00:01]} 75. Rd8 {[%emt 0:01:32]} Kb7 {[%emt 0:00:00]} 76. Rf8 {[%emt 0:00:00]} Re7 {[%emt 0:00:00]} 77. Rd6 {[%emt 0:00:17]} Ka7 {[%emt 0:00:00]} *

[Event "2019 National Open"]
[Site "Las Vegas"]
[Date "2019.06.15"]
[Round "7"]
[White "Wang, Annie"]
[Black "Sorokin, Aleksey"]
[Result "0-1"]
[ECO "D85"]
[WhiteElo "2334"]
[BlackElo "2536"]
[PlyCount "74"]
[EventDate "2019.??.??"]
[TimeControl "5400+30"]
[WhiteClock "0:19:37"]
[BlackClock "0:28:30"]

1. d4 {[%emt 0:00:00]} Nf6 {[%emt 0:00:13]} 2. c4 {[%emt 0:00:08]} g6 {[%emt 0:00:06]} 3. Nc3 {[%emt 0:00:03]} d5 {[%emt 0:00:08]} 4. cxd5 {[%emt 0:00:04]} Nxd5 {[%emt 0:00:13]} 5. e4 {[%emt 0:00:05]} Nxc3 {[%emt 0:00:07]} 6. bxc3 {[%emt 0:00:05]} Bg7 {[%emt 0:00:08]} 7. Bb5+ {[%emt 0:00:09]} c6 {[%emt 0:01:35]} 8. Ba4 {[%emt 0:00:11]} O-O {[%emt 0:00:12]} 9. Ne2 {[%emt 0:00:11]} e5 {[%emt 0:00:50]} 10. O-O {[%emt 0:00:46]} Qe7 {[%emt 0:00:30]} 11. f3 {[%emt 0:01:50]} exd4 {[%emt 0:05:03]} 12. cxd4 {[%emt 0:00:48]} Rd8 {[%emt 0:00:44]} 13. Be3 {[%emt 0:04:22]} b5 {[%emt 0:02:35]} 14. Bb3 {[%emt 0:04:25]} c5 {[%emt 0:00:27]} 15. Qc1 {[%emt 0:05:44]} c4 {[%emt 0:10:07]} 16. Bc2 {[%emt 0:00:11]} Nc6 {[%emt 0:06:01]} 17. Rd1 {[%emt 0:04:24]} a5 {[%emt 0:01:29]} 18. Rb1 {[%emt 0:06:30]} Ba6 {[%emt 0:02:43]} 19. d5 {[%emt 0:07:49]} Nb4 {[%emt 0:01:17]} 20. Bb6 {[%emt 0:00:00]} Nxa2 {[%emt 0:03:02]} 21. Qd2 {[%emt 0:00:00]} c3 {[%emt 0:06:17]} 22. Qe3 {[%emt 0:00:00]} Nb4 {[%emt 0:00:52]} 23. Rdc1 {[%emt 0:00:00]} Rdc8 {[%emt 0:05:37]} 24. Bxa5 {[%emt 0:00:00]} Nxd5 {[%emt 0:10:09]} 25. Qf2 {[%emt 0:00:00]} Bb7 {[%emt 0:05:35]} 26. Ra1 {[%emt 0:15:03]} Nb4 {[%emt 0:09:54]} 27. Bxb4 {[%emt 0:05:04]} Qxb4 {[%emt 0:00:05]} 28. Rab1 {[%emt 0:03:52]} Qc4 {[%emt 0:03:34]} 29. Qe3 {[%emt 0:02:35]} Bf8 {[%emt 0:01:20]} 30. Kh1 {[%emt 0:04:27]} Bc5 {[%emt 0:03:08]} 31. Qd3 {[%emt 0:00:23]} Qxd3 {[%emt 0:00:37]} 32. Bxd3 {[%emt 0:00:09]} b4 {[%emt 0:00:12]} 33. h3 {[%emt 0:03:41]} Ba6 {[%emt 0:01:20]} 34. Bxa6 {[%emt 0:00:43]} Rxa6 {[%emt 0:00:07]} 35. Rc2 {[%emt 0:00:56]} Rca8 {[%emt 0:00:29]} 36. Kh2 {[%emt 0:04:48]} Ra2 {[%emt 0:00:55]} 37. Rbc1 {[%emt 0:00:34]} Be3 {[%emt 0:01:12]} 0-1

[Event "2019 National Open"]
[Site "Las Vegas"]
[Date "2019.06.15"]
[Round "7"]
[White "Ghatti, Sanjay"]
[Black "Lee, Megan"]
[Result "1/2-1/2"]
[ECO "C77"]
[WhiteElo "2190"]
[BlackElo "2115"]
[PlyCount "108"]
[EventDate "2019.??.??"]
[TimeControl "5400+30"]
[WhiteClock "0:54:39"]
[BlackClock "0:50:47"]

1. e4 {[%emt 0:00:00]} e5 {[%emt 0:00:01]} 2. Nf3 {[%emt 0:00:04]} Nc6 {[%emt 0:00:02]} 3. Bb5 {[%emt 0:00:03]} a6 {[%emt 0:00:05]} 4. Ba4 {[%emt 0:00:02]} Nf6 {[%emt 0:00:04]} 5. d3 {[%emt 0:00:02]} Bc5 {[%emt 0:00:18]} 6. O-O {[%emt 0:00:14]} b5 {[%emt 0:00:05]} 7. Bb3 {[%emt 0:00:04]} d6 {[%emt 0:00:03]} 8. c3 {[%emt 0:00:51]} h6 {[%emt 0:00:38]} 9. Be3 {[%emt 0:00:11]} Bxe3 {[%emt 0:03:36]} 10. fxe3 {[%emt 0:00:00]} O-O {[%emt 0:03:04]} 11. a4 {[%emt 0:00:00]} Rb8 {[%emt 0:00:44]} 12. axb5 {[%emt 0:00:29]} axb5 {[%emt 0:00:00]} 13. Nbd2 {[%emt 0:00:45]} b4 {[%emt 0:16:30]} 14. Qe2 {[%emt 0:01:36]} bxc3 {[%emt 0:10:06]} 15. bxc3 {[%emt 0:02:24]} Qe8 {[%emt 0:00:00]} 16. Nh4 {[%emt 0:03:00]} Be6 {[%emt 0:12:19]} 17. Ba4 {[%emt 0:00:00]} Ra8 {[%emt 0:00:00]} 18. Kh1 {[%emt 0:00:01]} Qd7 {[%emt 0:00:03]} 19. Qd1 {[%emt 0:00:01]} d5 {[%emt 0:00:00]} 20. exd5 {[%emt 0:00:00]} Nxd5 {[%emt 0:00:00]} 21. Qf3 {[%emt 0:00:01]} e4 {[%emt 0:00:04]} 22. Nxe4 {[%emt 0:00:00]} Rxa4 {[%emt 0:00:01]} 23. Rxa4 {[%emt 0:00:00]} Ne5 {[%emt 0:00:04]} 24. Qg3 {[%emt 0:09:09]} Qxa4 {[%emt 0:00:00]} 25. Qxe5 {[%emt 0:00:00]} Nxe3 {[%emt 0:00:00]} 26. Qf4 {[%emt 0:06:17]} Qa7 {[%emt 0:00:00]} 27. Re1 {[%emt 0:08:34]} Nd5 {[%emt 0:00:00]} 28. Qe5 {[%emt 0:00:00]} Re8 {[%emt 0:00:01]} 29. c4 {[%emt 0:00:00]} Ne7 {[%emt 0:00:01]} 30. Ng3 {[%emt 0:00:00]} Nc6 {[%emt 0:01:49]} 31. Qf4 {[%emt 0:08:15]} Qd4 {[%emt 0:00:01]} 32. Qxc7 {[%emt 0:00:07]} Rc8 {[%emt 0:00:02]} 33. Qb7 {[%emt 0:00:02]} Qxh4 {[%emt 0:00:00]} 34. Rxe6 {[%emt 0:00:00]} Rb8 {[%emt 0:00:00]} 35. Qxb8+ {[%emt 0:00:00]} Nxb8 {[%emt 0:00:00]} 36. Re8+ {[%emt 0:01:04]} Kh7 {[%emt 0:00:00]} 37. Rxb8 {[%emt 0:00:02]} Qd4 {[%emt 0:00:00]} 38. Rb1 {[%emt 0:00:00]} Qxd3 {[%emt 0:00:00]} 39. Rc1 {[%emt 0:00:56]} Qd2 {[%emt 0:00:00]} 40. Rf1 {[%emt 0:00:00]} f6 {[%emt 0:01:59]} 41. c5 {[%emt 0:02:41]} Qc2 {[%emt 0:02:52]} 42. h4 {[%emt 0:02:34]} Qxc5 {[%emt 0:00:00]} 43. h5 {[%emt 0:00:28]} Qg5 {[%emt 0:02:02]} 44. Rf3 {[%emt 0:01:16]} Kg8 {[%emt 0:00:00]} 45. Kg1 {[%emt 0:00:00]} Kf7 {[%emt 0:00:00]} 46. Kf2 {[%emt 0:07:50]} Ke6 {[%emt 0:00:16]} 47. Kg1 {[%emt 0:00:04]} Qc1+ {[%emt 0:00:01]} 48. Kf2 {[%emt 0:06:51]} Qc2+ {[%emt 0:00:02]} 49. Kf1 {[%emt 0:00:00]} f5 {[%emt 0:00:00]} 50. Ne2 {[%emt 0:00:00]} Ke5 {[%emt 0:00:01]} 51. Re3+ {[%emt 0:00:00]} Kf6 {[%emt 0:00:01]} 52. Re6+ {[%emt 0:00:00]} Kf7 {[%emt 0:00:00]} 53. Re3 {[%emt 0:00:00]} Qc4 {[%emt 0:00:47]} 54. g3 {[%emt 0:00:15]} Qg4 {[%emt 0:04:39]} 1/2-1/2

[Event "2019 National Open"]
[Site "Las Vegas"]
[Date "2019.06.16"]
[Round "8"]
[White "Shetty, Atulya"]
[Black "Grabinsky, Aaron"]
[Result "1-0"]
[ECO "A20"]
[WhiteElo "2431"]
[BlackElo "2281"]
[PlyCount "103"]
[EventDate "2019.??.??"]
[TimeControl "5400+30"]
[WhiteClock "0:30:47"]
[BlackClock "0:24:25"]

1. c4 {[%emt 0:00:00]} e5 {[%emt 0:00:00]} 2. g3 {[%emt 0:00:00]} Nc6 {[%emt 0:00:01]} 3. Bg2 {[%emt 0:00:01]} Bc5 {[%emt 0:00:01]} 4. Nc3 {[%emt 0:00:32]} a6 {[%emt 0:00:07]} 5. Nf3 {[%emt 0:01:31]} d6 {[%emt 0:00:00]} 6. O-O {[%emt 0:00:36]} Nge7 {[%emt 0:00:46]} 7. a3 {[%emt 0:03:14]} Be6 {[%emt 0:01:33]} 8. e3 {[%emt 0:02:07]} Ba7 {[%emt 0:03:43]} 9. d4 {[%emt 0:02:58]} Bg4 {[%emt 0:04:25]} 10. d5 {[%emt 0:03:12]} Nb8 {[%emt 0:02:53]} 11. b4 {[%emt 0:01:16]} O-O {[%emt 0:01:10]} 12. Qc2 {[%emt 0:03:18]} Nd7 {[%emt 0:01:09]} 13. Bb2 {[%emt 0:05:47]} h6 {[%emt 0:07:59]} 14. Rac1 {[%emt 0:00:01]} f5 {[%emt 0:08:16]} 15. Nd2 {[%emt 0:18:04]} f4 {[%emt 0:07:45]} 16. h3 {[%emt 0:05:50]} Bh5 {[%emt 0:15:48]} 17. Qd3 {[%emt 0:00:00]} Bg6 {[%emt 0:06:37]} 18. Be4 {[%emt 0:02:46]} Nf5 {[%emt 0:00:56]} 19. Kh2 {[%emt 0:09:22]} Qg5 {[%emt 0:18:42]} 20. exf4 {[%emt 0:11:37]} exf4 {[%emt 0:00:00]} 21. Ne2 {[%emt 0:00:00]} fxg3+ {[%emt 0:07:13]} 22. fxg3 {[%emt 0:00:00]} Ne3 {[%emt 0:04:15]} 23. Rf4 {[%emt 0:00:00]} Bh5 {[%emt 0:05:53]} 24. Nf3 {[%emt 0:00:01]} Bxf3 {[%emt 0:00:03]} 25. Bxf3 {[%emt 0:00:01]} Rae8 {[%emt 0:00:00]} 26. h4 {[%emt 0:00:00]} Qe7 {[%emt 0:00:00]} 27. Bh5 {[%emt 0:00:03]} Ne5 {[%emt 0:00:00]} 28. Bxe5 {[%emt 0:00:01]} dxe5 {[%emt 0:00:00]} 29. Rxf8+ {[%emt 0:00:00]} Rxf8 {[%emt 0:00:00]} 30. c5 {[%emt 0:00:01]} Nf1+ {[%emt 0:00:00]} 31. Kg2 {[%emt 0:00:03]} Qf6 {[%emt 0:00:00]} 32. Qf3 {[%emt 0:00:03]} Qxf3+ {[%emt 0:00:00]} 33. Bxf3 {[%emt 0:00:00]} Ne3+ {[%emt 0:00:00]} 34. Kf2 {[%emt 0:00:00]} Nxd5 {[%emt 0:00:00]} 35. Nf4 {[%emt 0:00:02]} c6 {[%emt 0:00:00]} 36. Nxd5 {[%emt 0:00:00]} cxd5 {[%emt 0:00:00]} 37. Ke3 {[%emt 0:00:02]} Rd8 {[%emt 0:00:00]} 38. Rd1 {[%emt 0:00:00]} d4+ {[%emt 0:00:00]} 39. Kd3 {[%emt 0:00:00]} Rd7 {[%emt 0:00:00]} 40. Be4 {[%emt 0:00:00]} a5 {[%emt 0:00:00]} 41. Rf1 {[%emt 0:01:35]} axb4 {[%emt 0:00:00]} 42. axb4 {[%emt 0:00:00]} g5 {[%emt 0:00:00]} 43. hxg5 {[%emt 0:01:29]} hxg5 {[%emt 0:00:00]} 44. Ra1 {[%emt 0:10:15]} b6 {[%emt 0:00:00]} 45. Rxa7 {[%emt 0:02:20]} Rxa7 {[%emt 0:00:00]} 46. cxb6 {[%emt 0:00:00]} Ra6 {[%emt 0:00:00]} 47. b7 {[%emt 0:00:37]} Rb6 {[%emt 0:00:00]} 48. Kc4 {[%emt 0:00:00]} d3 {[%emt 0:00:00]} 49. Kc5 {[%emt 0:01:29]} d2 {[%emt 0:00:00]} 50. Kxb6 {[%emt 0:00:00]} d1=Q {[%emt 0:00:00]} 51. b8=Q+ {[%emt 0:00:01]} Kf7 {[%emt 0:00:00]} 52. Qxe5 {[%emt 0:01:20]} 1-0